bitfinex-derivatives/quotes_SOLF0:USTF0_20250507
["timestamp","ask_amount","ask_price","bid_price","bid_amount"]
[1746648033927,31.2,145.84,145.82,6.8574]
[1746648034224,31.2,145.84,145.77,33.2455]
[1746648034423,31.2,145.84,145.81,6.8576]
[1746648035027,38.0565,145.84,145.8,6.8581]
[1746648035230,31.2,145.84,145.8,6.8581]
[1746648035526,38.0568,145.84,145.8,6.8581]
[1746648036728,38.0568,145.84,145.81,6.8578]
[1746648037330,6.8569,145.83,145.8,6.8582]
[1746648037528,31.2,145.84,145.77,33.2455]
[1746648038325,31.2,145.84,145.77,31.2]
[1746648038531,4.1934,145.83,145.73,623.8]
[1746648038828,6.8588,145.8,145.76,6.8599]
[1746648039125,6.8588,145.8,145.77,6.8594]
[1746648039326,6.858,145.81,145.73,623.8]
[1746648039822,6.858,145.81,145.77,6.8595]
[1746648040728,6.8576,145.82,145.73,623.8]
[1746648041432,2.0029,145.83,145.73,623.8]
[1746648042229,2.0029,145.83,145.74,14.7014621]
[1746648042430,31.2,145.84,145.74,14.7014621]
[1746648043226,38.0566,145.84,145.74,14.7014621]
[1746648043825,38.0566,145.84,145.8,6.858]
[1746648044233,38.0566,145.84,145.81,6.8578]
[1746648045730,38.0566,145.84,145.8,6.8581]
[1746648045932,38.0566,145.84,145.77,31.14]
[1746648045933,6.8561,145.85,145.77,31.14]
[1746648046119,6.8561,145.85,145.78,2.1208]
[1746648046323,6.8557,145.86,145.83,6.8569]
[1746648046524,35.3407,145.87,145.78,2.1208]
[1746648047029,6.8558,145.86,145.83,6.8567]
[1746648047526,6.856,145.85,145.78,2.1208]
[1746648047730,35.3407,145.87,145.78,2.1208]
[1746648048232,6.8562,145.85,145.81,6.8574]
[1746648048533,35.3407,145.87,145.78,2.1208]
[1746648049130,35.3407,145.87,145.8,6.8583]
[1746648049131,6.8569,145.84,145.8,6.8583]
[1746648049328,35.3407,145.87,145.8,6.8583]
[1746648049832,6.857,145.83,145.8,6.8583]
[1746648050026,33.163,145.87,145.82,6.8573]
[1746648050231,33.163,145.87,145.78,2.1208]
[1746648050425,592.48,145.89,145.78,6.2543]
[1746648050630,623.62,145.89,145.78,6.2543]
[1746648051032,6.8553,145.87,145.78,6.2543]
[1746648051234,623.62,145.89,145.78,6.2543]
[1746648052333,31.14,145.92,145.79,13.7174]
[1746648052631,31.14,145.92,145.8,14.7014621]
[1746648052832,6.8537,145.9,145.87,6.8548]
[1746648053030,31.14,145.92,145.87,6.8548]
[1746648053230,31.14,145.92,145.81,31.14]
[1746648053634,37.9929,145.92,145.81,31.14]
[1746648054033,37.9929,145.92,145.88,6.8542]
[1746648054429,6.8532,145.91,145.88,6.8542]
[1746648054737,31.14,145.92,145.89,6.854]
[1746648054928,37.9929,145.92,145.89,6.854]
[1746648055435,6.8532,145.91,145.85,31.14]
[1746648056135,37.9929,145.92,145.85,31.14]
[1746648056634,6.8532,145.91,145.88,6.8542]
[1746648057034,31.14,145.92,145.85,31.14]
[1746648057337,31.14,145.92,145.85,37.9956]
[1746648057837,6.8543,145.89,145.85,31.14]
[1746648058537,6.8543,145.89,145.85,37.9957]
[1746648059040,6.8547,145.88,145.85,6.8557]
[1746648059232,2.1717,145.91,145.84,6.8561]
[1746648059432,2.1717,145.91,145.82,31.14]
[1746648059632,6.8553,145.87,145.84,6.8563]
[1746648060239,6.8556,145.86,145.84,6.8563]
[1746648060541,2.1717,145.91,145.84,6.8563]
[1746648060840,6.8553,145.87,145.84,6.8563]
[1746648062037,6.8555,145.86,145.84,6.8563]
[1746648062236,2.1717,145.91,145.82,31.14]
[1746648062532,2.1717,145.91,145.78,6.2543]
[1746648062533,6.8567,145.84,145.79,31.14]
[1746648062739,6.8567,145.84,145.81,6.8574]
[1746648062935,31.14,145.87,145.81,6.8574]
[1746648063141,4.1422,145.86,145.81,6.8574]
[1746648063348,4.1422,145.86,145.8,6.8581]
[1746648063641,4.1422,145.86,145.79,31.14]
[1746648063840,6.8567,145.84,145.82,6.8573]
[1746648064235,4.1422,145.86,145.82,6.8573]
[1746648064439,4.1422,145.86,145.79,31.14]
[1746648064639,6.8562,145.85,145.79,31.14]
[1746648065547,6.8556,145.86,145.79,31.14]
[1746648065736,31.14,145.87,145.79,31.14]
[1746648066141,31.14,145.87,145.84,6.8561]
[1746648066554,6.8549,145.88,145.84,6.8561]
[1746648066949,6.8552,145.87,145.84,6.8561]
[1746648067853,6.8555,145.86,145.83,6.8567]
[1746648068050,35.2822,145.9,145.79,33.3171]
[1746648068246,35.2822,145.9,145.79,31.14]
[1746648068647,6.8572,145.83,145.8,6.8583]
[1746648069349,31.14,145.86,145.79,31.14]
[1746648069855,31.14,145.86,145.83,6.8566]
[1746648070145,31.14,145.86,145.79,31.14]
[1746648070353,31.08,145.89,145.79,31.14]
[1746648070557,31.08,145.89,145.8,2.1506]
[1746648071051,31.08,145.89,145.8,18.8405621]
[1746648071351,4.1422,145.9,145.8,18.8405621]
[1746648071553,10.9961,145.9,145.87,6.8549]
[1746648073157,6.8542,145.89,145.86,6.8552]
[1746648073452,4.1422,145.9,145.83,31.08]
[1746648073855,6.8555,145.86,145.83,37.9367]
[1746648074857,4.1422,145.9,145.82,6.8572]
[1746648075045,4.1422,145.9,145.8,31.08]
[1746648075253,6.8561,145.85,145.82,6.8572]
[1746648075547,6.8561,145.85,145.8,31.08]
[1746648075754,6.8576,145.82,145.75,4.2758]
[1746648075949,31.08,145.87,145.76,31.08]
[1746648076351,6.8577,145.82,145.79,6.8584]
[1746648076552,33.1956,145.87,145.79,6.8584]
[1746648076764,31.08,145.86,145.76,31.08]
[1746648077960,6.8575,145.82,145.79,6.8588]
[1746648078358,31.08,145.86,145.76,31.08]
[1746648078657,14.7014621,145.85,145.74,2.1585]
[1746648079055,6.8595,145.78,145.75,6.8604]
[1746648079455,6.86,145.77,145.74,9.0194]
[1746648079756,31.08,145.8,145.7,31.08]
[1746648079956,6.8598,145.77,145.7,31.08]
[1746648080561,6.8598,145.77,145.74,6.861]
[1746648080757,6.8603,145.76,145.74,6.861]
[1746648080957,31.08,145.8,145.74,6.861]
[1746648081355,6.86,145.77,145.74,6.861]
[1746648081756,6.8602,145.76,145.74,6.861]
[1746648082060,31.08,145.8,145.7,31.08]
[1746648082760,31.08,145.8,145.76,6.8601]
[1746648082964,6.859,145.79,145.76,6.8601]
[1746648083356,6.859,145.79,145.77,6.8597]
[1746648083754,6.859,145.79,145.76,6.86]
[1746648084864,6.859,145.79,145.77,6.8597]
[1746648085054,6.859,145.79,145.71,2.1853]
[1746648085254,31.08,145.8,145.7,31.08]
[1746648085456,31.08,145.8,145.71,2.1512]
[1746648085660,31.08,145.8,145.76,6.8599]
[1746648086060,6.859,145.79,145.76,6.8599]
[1746648086563,6.859,145.79,145.77,6.8597]
[1746648086759,6.859,145.79,145.7,31.08]
[1746648087663,6.859,145.79,145.76,6.8599]
[1746648088462,37.9386,145.8,145.76,6.8599]
[1746648088664,37.9386,145.8,145.77,6.8597]
[1746648089065,37.9386,145.8,145.7,31.08]
[1746648089363,37.9386,145.8,145.76,6.8601]
[1746648089563,31.08,145.8,145.7,31.08]
[1746648089760,31.08,145.8,145.77,6.8594]
[1746648090662,37.9385,145.8,145.77,6.8594]
[1746648090863,31.08,145.8,145.74,31.08]
[1746648091258,6.86,145.77,145.71,31.08]
[1746648091864,6.86,145.77,145.74,6.861]
[1746648092163,6.8602,145.76,145.71,31.08]
[1746648092466,6.8602,145.76,145.72,6.8617]
[1746648093266,6.8602,145.76,145.73,6.8616]
[1746648094466,6.8608,145.75,145.73,6.8616]
[1746648094667,31.08,145.76,145.69,6.3288]
[1746648094867,31.08,145.76,145.68,31.08]
[1746648095164,6.8613,145.74,145.71,6.8624]
[1746648095565,6.8619,145.73,145.68,31.08]
[1746648096168,6.8613,145.74,145.72,6.8621]
[1746648096367,31.08,145.76,145.72,6.8621]
[1746648096571,31.08,145.76,145.68,31.08]
[1746648097070,31.08,145.79,145.68,31.08]
[1746648097272,6.8595,145.78,145.75,6.8606]
[1746648097470,11.0336,145.78,145.75,6.8606]
[1746648098266,11.0336,145.78,145.68,31.08]
[1746648098666,4.1741,145.78,145.68,31.08]
[1746648098871,4.1741,145.78,145.76,6.8599]
[1746648099471,11.0334,145.78,145.75,6.8604]
[1746648101269,4.1741,145.78,145.74,6.8609]
[1746648101874,6.86,145.77,145.74,6.8609]
[1746648102874,4.1741,145.78,145.69,31.04]
[1746648103577,6.861,145.75,145.69,31.04]
[1746648104369,4.1741,145.78,145.69,31.04]
[1746648104763,4.1741,145.78,145.74,6.8609]
[1746648104971,6.8601,145.77,145.74,6.8609]
[1746648105374,11.0336,145.78,145.75,6.8606]
[1746648105570,4.1741,145.78,145.75,6.8606]
[1746648105873,4.1741,145.78,145.69,31.04]
[1746648106269,31.08,145.79,145.7,14.7014621]
[1746648106469,2.13,145.81,145.7,14.7014621]
[1746648106776,6.8585,145.8,145.77,6.8594]
[1746648107278,2.13,145.81,145.74,31.04]
[1746648108376,2.13,145.81,145.79,6.8587]
[1746648108775,2.13,145.81,145.74,31.04]
[1746648108977,8.9881,145.81,145.78,6.859]
[1746648109177,2.13,145.81,145.74,31.04]
[1746648109579,6.8598,145.77,145.71,31.04]
[1746648109778,2.13,145.81,145.71,31.04]
[1746648110177,6.8595,145.78,145.74,6.861]
[1746648110377,6.8595,145.78,145.71,31.04]
[1746648110678,6.8595,145.78,145.75,6.8606]
[1746648112580,6.8598,145.77,145.74,6.861]
[1746648113179,6.8598,145.77,145.71,31.04]
[1746648113369,6.8595,145.78,145.71,31.04]
[1746648113681,6.8595,145.78,145.75,6.8604]
[1746648115583,6.8598,145.77,145.75,6.8604]
[1746648116381,6.8595,145.78,145.76,6.8602]
[1746648118381,6.8587,145.8,145.77,6.8597]
[1746648118881,2.13,145.81,145.71,31.04]
[1746648119085,6.8593,145.78,145.71,31.04]
[1746648119784,6.8598,145.77,145.71,31.04]
[1746648120284,6.8598,145.77,145.75,6.8606]
[1746648120684,6.8598,145.77,145.71,31.04]
[1746648120880,31.04,145.78,145.73,6.8614]
[1746648121182,2.1104,145.76,145.68,31.04]
[1746648121878,2.1104,145.76,145.72,6.8618]
[1746648121879,6.8607,145.75,145.72,6.8618]
[1746648122487,2.1104,145.76,145.68,31.04]
[1746648122681,2.004,145.75,145.68,31.04]
[1746648122985,6.8624,145.72,145.68,31.04]
[1746648123789,6.8624,145.72,145.69,6.8633]
[1746648124687,6.8629,145.71,145.68,31.04]
[1746648125182,6.8629,145.71,145.68,37.9036]
[1746648125785,6.8622,145.72,145.69,6.8634]
[1746648125982,31.04,145.74,145.68,31.04]
[1746648126188,31.04,145.74,145.66,592.46]
[1746648126384,31.04,145.74,145.65,31.04]
[1746648126984,31.04,145.74,145.67,6.8642]
[1746648127184,31.04,145.74,145.65,31.04]
[1746648127888,6.8628,145.71,145.68,6.8637]
[1746648128685,6.8631,145.7,145.68,6.8637]
[1746648129188,6.8627,145.71,145.68,6.8637]
[1746648129591,6.8627,145.71,145.69,6.8635]
[1746648129991,6.8631,145.7,145.65,31.04]
[1746648130193,6.8631,145.7,145.67,6.8642]
[1746648130488,6.864,145.68,145.61,30.98]
[1746648130677,6.3877,145.69,145.64,6.8655]
[1746648131491,6.8647,145.67,145.64,6.8655]
[1746648131681,6.8647,145.67,145.65,6.8654]
[1746648131979,6.8642,145.68,145.65,6.8654]
[1746648132485,6.8642,145.68,145.61,30.98]
[1746648132992,6.8642,145.68,145.65,6.8652]
[1746648133188,13.2513,145.69,145.61,30.98]
[1746648134293,6.864,145.68,145.61,30.98]
[1746648134886,6.864,145.68,145.65,6.8651]
[1746648135282,6.3877,145.69,145.63,6.866]
[1746648135592,6.3877,145.69,145.61,30.98]
[1746648135987,6.8648,145.67,145.64,6.8657]
[1746648136787,6.3877,145.69,145.61,30.98]
[1746648136993,6.3877,145.69,145.58,31.0]
[1746648137392,6.8654,145.65,145.62,6.8665]
[1746648138293,31.0,145.66,145.58,31.0]
[1746648138597,6.8662,145.64,145.61,6.8671]
[1746648138999,31.0,145.66,145.58,31.0]
[1746648139193,6.8664,145.63,145.6,6.8675]
[1746648139998,6.8661,145.64,145.61,6.8672]
[1746648140295,31.0,145.66,145.58,31.0]
[1746648140592,6.8664,145.63,145.6,6.8674]
[1746648140793,31.0,145.66,145.58,31.0]
[1746648141194,6.8674,145.61,145.58,6.8684]
[1746648141796,6.8678,145.6,145.58,6.8684]
[1746648142190,6.8675,145.61,145.58,6.8684]
[1746648143500,6.867,145.62,145.58,6.8684]
[1746648143899,31.0,145.66,145.58,6.8684]
[1746648144302,31.0,145.66,145.59,6.8682]
[1746648144600,6.8669,145.62,145.59,6.8682]
[1746648144900,31.0,145.66,145.55,31.0]
[1746648145289,6.8656,145.65,145.55,31.0]
[1746648146101,31.0,145.66,145.56,14.7014621]
[1746648146396,31.0,145.66,145.55,44.7397]
[1746648146699,31.0,145.66,145.64,6.8656]
[1746648147305,31.0,145.66,145.65,6.8654]
[1746648147499,31.0,145.69,145.61,4.2861]
[1746648147699,31.0,145.69,145.61,6.3905]
[1746648147902,31.27784,145.69,145.67,6.8644]
[1746648148398,31.27784,145.69,145.61,6.3905]
[1746648148399,0.27784,145.69,145.68,6.864]
[1746648149100,0.27784,145.69,145.64,31.0]
[1746648149602,0.27784,145.69,145.66,6.8646]
[1746648149805,0.27784,145.69,145.64,31.0]
[1746648150209,0.27784,145.69,145.68,6.864]
[1746648150702,0.27784,145.69,145.64,31.0]
[1746648152404,6.8647,145.67,145.63,6.8659]
[1746648152606,0.27784,145.69,145.61,37.3905]
[1746648152908,6.8648,145.67,145.63,6.8659]
[1746648153206,6.8648,145.67,145.61,37.3905]
[1746648154008,6.8648,145.67,145.63,6.866]
[1746648154206,6.8648,145.67,145.61,37.3905]
[1746648154508,6.8642,145.68,145.61,37.3905]
[1746648154909,7.14144,145.69,145.66,6.8648]
[1746648158007,0.27784,145.69,145.66,6.8648]
[1746648159108,0.27784,145.69,145.61,37.3905]
[1746648159608,0.27784,145.69,145.66,6.8646]
[1746648160315,0.27784,145.69,145.61,37.3905]
[1746648160514,0.27784,145.69,145.61,4.2861]
[1746648160815,6.865,145.66,145.63,6.8661]
[1746648161014,37.805,145.66,145.63,6.8661]
[1746648161614,37.805,145.66,145.64,6.8658]
[1746648161816,30.94,145.66,145.61,4.2861]
[1746648162114,30.94,145.66,145.64,6.8655]
[1746648167522,30.94,145.69,145.61,4.2861]
[1746648168024,37.8038,145.69,145.65,6.8649]
[1746648168622,6.8641,145.68,145.65,6.8649]
[1746648169321,6.8644,145.67,145.64,6.8657]
[1746648169521,30.94,145.69,145.64,6.8657]
[1746648170322,6.8644,145.68,145.64,6.8657]
[1746648170623,30.94,145.69,145.63,6.8661]
[1746648170823,6.8658,145.65,145.61,4.2861]
[1746648171124,30.94,145.69,145.61,6.8671]
[1746648171420,6.8661,145.64,145.61,6.8671]
[1746648173125,6.8655,145.65,145.61,6.8671]
[1746648173724,6.8652,145.66,145.62,6.8665]
[1746648174625,6.8655,145.65,145.62,6.8665]
[1746648174826,6.8655,145.65,145.63,6.8662]
[1746648175827,6.8655,145.65,145.62,6.8666]
[1746648176528,6.8655,145.65,145.63,6.8663]
[1746648176829,6.8651,145.66,145.58,30.94]
[1746648177034,9.20696714,145.68,145.58,30.94]
[1746648177330,37.8035,145.69,145.58,40.14696714]
[1746648177730,30.94,145.69,145.58,40.14696714]
[1746648178230,30.94,145.69,145.6,13.7355]
[1746648178431,30.94,145.69,145.58,40.14696714]
[1746648178626,30.94,145.69,145.58,30.94]
[1746648179230,6.864,145.68,145.65,6.8652]
[1746648179923,6.8646,145.67,145.64,6.8656]
[1746648180123,30.94,145.69,145.62,30.94]
[1746648180524,9.20696714,145.68,145.61,6.8673]
[1746648180831,9.20696714,145.68,145.59,30.94]
[1746648181527,6.8646,145.67,145.64,6.8655]
[1746648182531,16.07106714,145.68,145.64,6.8655]
[1746648182832,9.20696714,145.68,145.63,6.8661]
[1746648183022,9.20696714,145.68,145.59,30.94]
[1746648183221,6.8654,145.65,145.59,30.94]
[1746648183430,6.8654,145.65,145.61,6.867]
[1746648183733,6.8654,145.65,145.59,30.94]
[1746648184128,6.8654,145.65,145.62,6.8666]
[1746648185031,30.94,145.66,145.59,30.94]
[1746648185632,30.94,145.66,145.61,6.8673]
[1746648185934,9.20696714,145.65,145.57,4.2176]
[1746648186726,6.8671,145.62,145.59,6.868]
[1746648186933,30.94,145.66,145.57,4.2176]
[1746648187231,6.8657,145.65,145.62,6.8666]
[1746648187426,30.94,145.66,145.57,4.2176]
[1746648187630,6.8659,145.64,145.61,6.867]
[1746648188037,6.8659,145.64,145.57,4.2176]
[1746648188232,6.8659,145.64,145.61,6.8668]
[1746648190440,6.8656,145.65,145.62,6.8668]
[1746648190640,6.8656,145.65,145.57,2.1863]
[1746648191340,37.8051,145.66,145.57,2.1863]
[1746648191738,30.94,145.66,145.57,11.39326714]
[1746648192442,30.94,145.66,145.64,6.8658]
[1746648192640,30.9,145.69,145.6,40.10696714]
[1746648192834,30.9,145.69,145.61,2.0469]
[1746648193235,37.7637,145.69,145.62,4.2021]
[1746648193735,37.7637,145.69,145.66,6.8647]
[1746648194038,30.9,145.69,145.66,6.8647]
[1746648195543,37.7635,145.69,145.66,6.8647]
[1746648196543,37.7635,145.69,145.65,6.8651]
[1746648197542,6.8635,145.69,145.66,6.8649]
[1746648197947,30.9,145.71,145.64,30.9]
[1746648198144,30.9,145.71,145.69,6.8635]
[1746648198338,0.27336,145.73,145.69,6.8635]
[1746648198645,6.8623,145.72,145.69,6.8635]
[1746648200548,7.13526,145.73,145.69,6.8635]
[1746648200850,0.27336,145.73,145.64,30.9]
[1746648201050,0.27336,145.73,145.66,9.20696714]
[1746648201256,0.27336,145.73,145.67,2.1116]
[1746648201548,0.27336,145.73,145.68,30.88]
[1746648201750,0.27336,145.73,145.72,6.8621]
[1746648202253,30.88,145.78,145.75,6.8603]
[1746648202550,30.88,145.81,145.72,40.08696714]
[1746648202749,30.88,145.82,145.79,6.8585]
[1746648203050,30.88,145.82,145.73,2.1116]
[1746648203251,64.1061967,145.84,145.73,2.1116]
[1746648203453,64.1061967,145.84,145.74,2.0013]
[1746648203752,64.1061967,145.84,145.75,9.20696714]
[1746648203948,64.1061967,145.84,145.82,6.8574]
[1746648204347,30.88,145.86,145.82,6.8574]
[1746648204556,37.7357,145.86,145.82,6.8574]
[1746648204851,37.7357,145.86,145.8,6.858]
[1746648205050,6.8561,145.85,145.8,6.858]
[1746648205353,30.88,145.86,145.76,30.88]
[1746648206053,6.8565,145.84,145.78,6.8589]
[1746648206353,30.88,145.86,145.78,6.8589]
[1746648206551,30.88,145.86,145.77,6.8596]
[1746648207049,30.88,145.86,145.76,37.7401]
[1746648207255,45.57603895,145.86,145.76,30.88]
[1746648207649,14.69603895,145.83,145.76,30.88]
[1746648207854,37.2266,145.82,145.76,30.88]
[1746648208054,37.2266,145.82,145.74,2.0013]
[1746648208352,37.2266,145.82,145.74,8.862]
[1746648208658,37.2266,145.82,145.74,2.0013]
[1746648208852,6.8593,145.78,145.74,8.8621]
[1746648209355,6.859,145.79,145.74,8.8621]
[1746648209554,6.859,145.79,145.75,6.8606]
[1746648209752,14.69603895,145.83,145.74,2.0013]
[1746648209753,30.88,145.85,145.74,2.0013]
[1746648209952,6.8576,145.82,145.74,2.0013]
[1746648210653,30.88,145.85,145.74,2.0013]
[1746648211050,6.8571,145.83,145.74,2.0013]
[1746648211452,6.8571,145.83,145.79,6.8585]
[1746648212254,6.8574,145.82,145.78,6.8591]
[1746648212657,45.57603895,145.85,145.77,30.88]
[1746648212954,6.8586,145.8,145.77,30.88]
[1746648213152,45.57603895,145.85,145.74,32.8613]
[1746648213349,45.57603895,145.85,145.74,30.86]
[1746648213550,45.57603895,145.85,145.74,37.721]
[1746648213751,45.57603895,145.85,145.74,30.86]
[1746648214050,6.858,145.81,145.78,6.8591]
[1746648214251,30.88,145.85,145.74,30.86]
[1746648214652,30.88,145.85,145.76,6.8599]
[1746648215059,6.8589,145.79,145.76,6.8599]
[1746648216453,6.8585,145.8,145.77,6.8596]
[1746648217759,6.8588,145.79,145.76,6.86]
[1746648217961,45.57603895,145.85,145.74,30.86]
[1746648218261,30.88,145.85,145.74,30.86]
[1746648218463,30.88,145.85,145.75,2.1285]
[1746648219060,6.8581,145.81,145.75,2.1285]
[1746648219361,30.88,145.85,145.75,2.1285]
[1746648220162,6.8571,145.83,145.8,6.8582]
[1746648220863,6.8571,145.83,145.79,6.8586]
[1746648222563,6.3466,145.87,145.79,6.8586]
[1746648222764,6.3466,145.87,145.8,6.8583]
[1746648223465,6.8571,145.83,145.8,6.8583]
[1746648224471,6.8565,145.84,145.81,6.8578]
[1746648224766,6.8565,145.84,145.78,30.86]
[1746648225867,6.8565,145.84,145.8,6.8579]
[1746648226768,6.857,145.83,145.78,30.86]
[1746648227468,6.8567,145.84,145.81,6.8578]
[1746648227769,6.8558,145.86,145.82,6.8573]
[1746648227963,6.3466,145.87,145.78,30.86]
[1746648228170,30.82,145.88,145.78,30.86]
[1746648228365,30.82,145.88,145.79,2.191]
[1746648228567,37.6748,145.88,145.84,6.8562]
[1746648229670,6.2963,145.92,145.87,6.855]
[1746648229671,6.8539,145.9,145.87,6.855]
[1746648229863,37.1163,145.92,145.82,30.82]
[1746648230061,30.82,145.92,145.83,4.2123]
[1746648230467,30.82,145.92,145.89,6.8538]
[1746648230966,6.8519,145.94,145.9,6.8536]
[1746648231366,30.8,145.95,145.86,30.8]
[1746648232077,30.8,145.95,145.9,6.8534]
[1746648232374,30.8,145.95,145.87,2.1102]
[1746648232775,6.852,145.94,145.89,6.8538]
[1746648232976,6.852,145.94,145.87,2.1102]
[1746648233576,6.8512,145.96,145.87,2.1102]
[1746648234171,6.8512,145.96,145.91,6.8527]
[1746648234373,30.8,145.98,145.91,30.8]
[1746648234978,6.2191,146.0,145.91,30.8]
[1746648235171,6.2191,146.0,145.92,2.1619]
[1746648235771,6.8502,145.98,145.92,2.1619]
[1746648235972,6.2191,146.0,145.92,2.1619]
[1746648236281,6.8494,145.99,145.92,2.1619]
[1746648236581,6.8494,145.99,145.92,4.3416]
[1746648237582,6.85,145.98,145.92,4.3416]
[1746648238880,6.8504,145.97,145.92,4.3416]
[1746648239081,6.2191,146.0,145.92,4.3416]
[1746648240177,30.8,146.01,145.92,4.3416]
[1746648240479,30.78,146.04,145.93,1.9994]
[1746648240677,6.8482,146.02,145.93,1.9994]
[1746648241782,6.8487,146.01,145.93,1.9994]
[1746648242581,6.8482,146.02,145.93,1.9994]
[1746648242883,30.78,146.04,145.93,1.9994]
[1746648243181,6.8487,146.01,145.93,1.9994]
[1746648243382,30.78,146.04,145.93,1.9994]
[1746648243684,6.8497,145.99,145.93,1.9994]
[1746648244478,6.8491,146.0,145.93,1.9994]
[1746648245086,6.8494,145.99,145.93,1.9994]
[1746648245285,30.78,146.04,145.92,4.3416]
[1746648245584,14.69603895,146.01,145.91,30.8]
[1746648245782,6.2737,146.0,145.91,30.8]
[1746648245982,37.0537,146.0,145.91,30.8]
[1746648247585,14.69603895,145.98,145.91,30.8]
[1746648247885,6.8533,145.91,145.88,37.6343]
[1746648248182,30.78,145.95,145.88,30.78]
[1746648248385,6.854,145.9,145.88,30.78]
[1746648248684,4.1717,145.94,145.85,30.78]
[1746648248881,2.028,145.93,145.85,30.78]
[1746648249887,6.8549,145.88,145.85,30.78]
[1746648251084,30.78,145.92,145.85,30.78]
[1746648251284,2.028,145.93,145.85,30.78]
[1746648251887,6.8534,145.91,145.87,6.8546]
[1746648252988,6.8538,145.9,145.86,6.8554]
[1746648253190,2.028,145.93,145.86,6.8554]
[1746648253486,2.028,145.93,145.85,30.78]
[1746648253990,6.8544,145.89,145.85,37.6358]
[1746648254290,2.028,145.93,145.85,30.78]
[1746648255091,14.69603895,145.92,145.82,43.9493]
[1746648255293,30.74,145.91,145.82,37.0922]
[1746648255591,30.74,145.91,145.82,30.74]
[1746648255790,14.69603895,145.89,145.79,37.5987]
[1746648256090,6.8572,145.83,145.79,37.5987]
[1746648256292,2.1201,145.88,145.79,37.5987]
[1746648256492,6.8572,145.83,145.79,37.5987]
[1746648256687,30.74,145.87,145.79,30.74]
[1746648257090,6.8564,145.84,145.79,30.74]
[1746648257485,6.8564,145.84,145.8,6.8581]
[1746648257792,30.74,145.87,145.79,30.74]
[1746648258488,6.8574,145.82,145.79,30.74]
[1746648258988,6.8572,145.83,145.79,30.74]
[1746648259291,6.8572,145.83,145.79,37.5987]
[1746648261094,6.8562,145.85,145.8,6.8583]
[1746648261303,30.74,145.9,145.79,30.74]
[1746648261691,6.8552,145.87,145.82,6.857]
[1746648261891,6.8552,145.87,145.83,30.74]
[1746648262294,6.8557,145.86,145.83,30.74]
[1746648262595,30.74,145.9,145.84,6.8562]
[1746648262792,30.74,145.9,145.83,30.74]
[1746648263598,6.8554,145.87,145.83,30.74]
[1746648263997,30.74,145.9,145.83,30.74]
[1746648264191,6.8557,145.86,145.83,30.74]
[1746648264393,30.74,145.9,145.83,30.74]
[1746648264799,6.8563,145.85,145.83,30.74]
[1746648265202,30.74,145.9,145.83,30.74]
[1746648265390,6.8555,145.86,145.83,37.5969]